Workbook

Sheet Лист1
B1: СОГЛАСОВАНО Начальник территориального Отдела управления Роспотребнадзора по РТ в Нурлатском, Аксубаевском,Алкеевском,Черемшанском районах____________________/ / "___"________________20_____г. | D1: СОГЛАСОВОНО Начальник МКУ «Отдел образования» Исполнительного комитета Аксубаевского муницип. района ________________/С.Ю.Зайцев/ ____ ______________20___г. | G1: УТВЕРЖДАЮ Директор МБОУ "Старокиязлинская ООШ" Аксубаевского муниципального района ____________/И.Д.Залалтдинов/ "_____"______________20_____г
C3: Двенадцатидневное примерное меню МБОУ "Старокиязлинская ООШ"
C4: Аксубаевского муниципального района РТ
D5: с 01.09.2020 г.
B6: № тех. карты | C6: 1 день | D6: выход | E6: белки | F6: жиры | G6: углеводы | H6: ккал
C7: Завтрак
B8: 390 | C8: Каша манная молочная | D8: 100/5 | E8: 6.24 | F8: 6.1 | G8: 19.7 | H8: 158.64
B9: 377 | C9: Чай с сахаром | D9: 200 | G9: 15 | H9: 57
B10: 901.902 | C10: Хлеб пшен., ржан. | D10: 40 | E10: 2 | G10: 19 | H10: 84
C11: Обед
B12: 199 | C12: Гороховое пюре | D12: 100/5 | E12: 9.64 | F12: 8.9 | G12: 24.94 | H12: 225.4
B13: 229 | C13: Рыба туш.в томате с овощами | D13: 100 | E13: 18 | F13: 6 | G13: 5 | H13: 161
B14: 45 | C14: Салат овощной | D14: 100 | E14: 1 | F14: 4 | G14: 9 | H14: 80
B15: 349 | C15: Компот из с/ф+ С витаминизация | D15: 200 | E15: 1 | G15: 21 | H15: 79
B16: 901.902 | C16: Хлеб пшен., ржан. | D16: 40 | E16: 2 | G16: 19 | H16: 84
C17: ВСЕГО | D17: 200/690 | E17: 79.76 | F17: =SUM(F8:F16) -> 25 | G17: =SUM(G8:G16) -> 132.64 | H17: =SUM(H8:H16) -> 929.04
C18: 2 день
C19: Завтрак
B20: 1064 | C20: Сосиска в тесте | D20: 50/50 | E20: 3.48 | F20: 1.22 | G20: 23.97 | H20: 120.7
B21: 377 | C21: Чай с сахаром | D21: 200 | G21: 15 | H21: 57
C22: Обед
B23: 92 | C23: Щи из свеж капусты на м/б | D23: 250 | E23: 1 | F23: 3 | G23: 7 | H23: 70
B24: 52 | C24: Салат из отвар.свеклы | D24: 60 | E24: 1 | F24: 3 | G24: 5 | H24: 51
B25: 904 | C25: Печенье | D25: 30 | E25: 2 | F25: 2 | G25: 22 | H25: 112
B26: 901.902 | C26: Хлеб пшен., ржан. | D26: 40 | E26: 2 | G26: 19 | H26: 84
B27: 377 | C27: Чай с сахаром | D27: 200 | G27: 15 | H27: 57
C28: ВСЕГО | D28: 300/520 | E28: =SUM(E20:E27) -> 9.48 | F28: =SUM(F20:F27) -> 9.22 | G28: =SUM(G20:G27) -> 106.97 | H28: =SUM(H20:H27) -> 551.7
C29: 3 день
C30: Завтрак
B31: 174.01 | C31: Каша рисовая молочная | D31: 100/5 | E31: 7 | F31: 12 | G31: 53 | H31: 280
B32: 377 | C32: Чай с сахаром | D32: 200 | G32: 15 | H32: 57
B33: 901.902 | C33: Хлеб пшен., ржан. | D33: 40 | E33: 2 | G33: 19 | H33: 84
C34: Обед
B35: 128 | C35: Картофельное пюре | D35: 100/5 | E35: 2 | F35: 6 | G35: 15 | H35: 123
B36: 286 | C36: Тефтели мясные | D36: 60 | E36: 8.7 | F36: 10 | G36: 11.71 | H36: 171
B37: 49 | C37: Салат Витаминный | D37: 100 | E37: 1 | F37: 5 | G37: 10 | H37: 90
B38: 377 | C38: Чай с сахаром | D38: 200 | G38: 15 | H38: 57
B39: 901.902 | C39: Хлеб пшен., ржан. | D39: 40 | E39: 2 | G39: 19 | H39: 84
C40: ВСЕГО | D40: 260/550 | E40: =SUM(E31:E39) -> 22.7 | F40: =SUM(F31:F39) -> 33 | G40: =SUM(G31:G39) -> 157.71 | H40: =SUM(H31:H39) -> 946
C41: 4 день
C42: Завтрак
B43: 209 | C43: Яйцо варенное | D43: 40 | E43: 4 | F43: 4 | H43: 56
B44: 377 | C44: Чай с сахаром | D44: 200 | G44: 15 | H44: 57
B45: 901.902 | C45: Хлеб пшен., ржан. | D45: 40 | E45: 2 | G45: 19 | H45: 84
C46: Обед
B47: 102 | C47: Суп гороховый на м/б. | D47: 250 | E47: 5 | F47: 5 | G47: 23 | H47: 180
B48: 67 | C48: Винегрет | D48: 100 | E48: 8 | F48: 7 | G48: 1 | H48: 111
B49: 349 | C49: Компот из с/ф+ С витаминизация | D49: 200 | E49: 1 | G49: 21 | H49: 79
B50: 901.902 | C50: Хлеб пшен., ржан. | D50: 40 | E50: 2 | G50: 19 | H50: 84
C51: ВСЕГО | D51: 290/580 | E51: =SUM(E43:E50) -> 22 | F51: =SUM(F43:F50) -> 16 | G51: =SUM(G43:G50) -> 98 | H51: =SUM(H43:H50) -> 651
C52: 5 день
C53: Завтрак
B54: 406 | C54: Выпечка | D54: 65 | E54: 4 | F54: 4 | G54: 31 | H54: 161
B55: 377 | C55: Чай с сахаром | D55: 200 | G55: 15 | H55: 57
B56: 901.902 | C56: Хлеб пшен., ржан. | D56: 40 | E56: 2 | G56: 19 | H56: 84
C57: Обед
B58: 171 | C58: Каша гречневая рассып. | D58: 170 | E58: 7 | F58: 8 | G58: 44 | H58: 280
B59: 260 | C59: Гуляш говяжий | D59: 50 | E59: 6 | F59: 7 | G59: 1.5 | H59: 164.5
B60: 516 | C60: Кисель+ С витаминизация | D60: 200 | E60: 1.4 | G60: 29 | H60: 122
B61: 59 | C61: Салат морковный с изюмом | D61: 100 | E61: 1 | G61: 23 | H61: 95
B62: 901.902 | C62: Хлеб пшен., ржан. | D62: 40 | E62: 2 | G62: 19 | H62: 84
C63: ВСЕГО | D63: 220/645 | E63: 47.4 | F63: 45 | G63: 167.5 | H63: =SUM(H54:H62) -> 1047.5
C64: 6 день
C65: Завтрак
B66: 94 | C66: Суп молочный с рисом | D66: 200/10 | E66: 7.76 | F66: 10 | G66: 43.52 | H66: 296
B67: 901 | C67: Хлеб пшеничный | D67: 40 | E67: 2 | G67: 19 | H67: 84
B68: 377 | C68: Чай с сахаром | D68: 200 | G68: 15 | H68: 57
C69: ВСЕГО | D69: 200/250 | E69: =SUM(E66:E68) -> 9.76 | F69: =SUM(F66:F68) -> 10 | G69: =SUM(G66:G68) -> 77.52 | H69: =SUM(H66:H68) -> 437
C70: 7 день
C71: Завтрак
B72: 174.01 | C72: Каша кукурузная молочн. | D72: 100/5 | E72: 7 | F72: 12 | G72: 53 | H72: 280
B73: 377 | C73: Чай с сахаром | D73: 200 | G73: 15 | H73: 57
B74: 901.902 | C74: Хлеб пшен., ржан. | D74: 40 | E74: 2 | F74: - | G74: 19 | H74: 84
C75: Обед
B76: 309 | C76: Макароны отварные | D76: 100/5 | E76: 3 | F76: 3 | G76: 23 | H76: 123
B77: 260 | C77: Гуляш говяжий | D77: 50 | E77: 6 | F77: 7 | G77: 1.5 | H77: 164.5
B78: 349 | C78: Компот из с/ф+ С витаминизация | D78: 200 | E78: 1 | G78: 21 | H78: 79
B79: 45 | C79: Салат овощной | D79: 100 | E79: 1 | F79: 4 | G79: 9 | H79: 80
C80: ВСЕГО | D80: 200/560 | E80: =SUM(E72:E79) -> 20 | F80: =SUM(F72:F79) -> 26 | G80: =SUM(G72:G79) -> 141.5 | H80: =SUM(H72:H79) -> 867.5
C81: 8 день
C82: Завтрак
B83: 406 | C83: Выпечка | D83: 65 | E83: 4 | F83: 4 | G83: 31 | H83: 161
B84: 377 | C84: Чай с сахаром | D84: 200 | G84: 15 | H84: 57
C85: Обед
B86: 130 | C86: Суп картоф.с макар.изделиями на к/м бульоне | D86: 250 | E86: 2 | F86: 2 | G86: 23 | H86: 549
B87: 52 | C87: Салат из отвар.свеклы | D87: 60 | E87: 1 | F87: 3 | G87: 5 | H87: 51
B88: 377 | C88: Чай с сахаром | D88: 200 | G88: 15 | H88: 57
B89: 901.902 | C89: Хлеб пшен., ржан. | D89: 40 | E89: 2 | F89: - | G89: 19 | H89: 84
C90: ВСЕГО | D90: 250/605 | E90: =SUM(E83:E89) -> 9 | F90: =SUM(F83:F89) -> 9 | G90: =SUM(G83:G89) -> 108 | H90: =SUM(H83:H89) -> 959
C91: 9 день
C92: Завтрак
B93: 174.01 | C93: Каша ячневая молочная | D93: 100/5 | E93: 7 | F93: 12 | G93: 53 | H93: 280
B94: 377 | C94: Чай с сахаром | D94: 200 | G94: 15 | H94: 57
B95: 901.902 | C95: Хлеб пшен,ржан. | D95: 40 | E95: 2 | G95: 19 | H95: 84
C96: Обед
B97: 199 | C97: Гороховое пюре | D97: 100/5 | E97: 9.64 | F97: 8.9 | G97: 24.94 | H97: 225.4
B98: 255 | C98: Рыбные котлеты | D98: 60 | E98: 11.175 | F98: 1.555 | G98: 2.98 | H98: 68.315
B99: 377 | C99: Чай с сахаром | D99: 200 | G99: 15 | H99: 57
B100: 59 | C100: Салат морковный с изюмом | D100: 100 | E100: 1 | G100: 23 | H100: 95
B101: 901.902 | C101: Хлеб пшен,ржан. | D101: 40 | E101: 2 | G101: 19 | H101: 84
C102: ВСЕГО | D102: 200/650 | E102: =SUM(E93:E101) -> 32.815 | F102: =SUM(F93:F101) -> 22.455 | G102: =SUM(G93:G101) -> 171.92 | H102: =SUM(H93:H101) -> 950.715
C103: 10 день
C104: Завтрак
B105: 390 | C105: Каша манная молочная | D105: 100/5 | E105: 6.24 | F105: 6.1 | G105: 19.7 | H105: 158.64
B106: 377 | C106: Чай с сахаром | D106: 200 | G106: 15 | H106: 57
B107: 901.902 | C107: Хлеб пшен,ржан. | D107: 40 | E107: 2 | G107: 19 | H107: 84
C108: Обед
B109: 96 | C109: Рассольник Ленинградский на к/м бульоне | D109: 250 | E109: 2 | F109: 4 | G109: 19 | H109: 117
B110: 52 | C110: Салат овощной с кукуруз.консервир | D110: 60 | E110: 1 | F110: 3 | G110: 5 | H110: 51
B111: 377 | C111: Чай с сахаром | D111: 200 | G111: 15 | H111: 57
B112: 901.902 | C112: Хлеб пшен., ржан. | D112: 40 | E112: 2 | G112: 19 | H112: 84
C113: ВСЕГО | D113: 350/545 | E113: =SUM(E105:E112) -> 13.24 | F113: =SUM(F105:F112) -> 13.1 | G113: =SUM(G105:G112) -> 111.7 | H113: =SUM(H105:H112) -> 608.64
C114: 11 день
C115: Завтрак
B116: 406 | C116: Выпечка | D116: 65 | E116: 4 | F116: 4 | G116: 31 | H116: 161
B117: 377 | C117: Чай с сахаром | D117: 200 | G117: 15 | H117: 57
C118: Обед
B119: 601 | C119: Плов из говядины | D119: 150 | E119: 12.89 | F119: 11.72 | G119: 31.68 | H119: 286.2
B120: 45 | C120: Салат овощной | D120: 100 | E120: 1 | F120: 4 | G120: 9 | H120: 80
B121: 349 | C121: Компот из с/ф+ С витаминизация | D121: 200 | E121: 1 | G121: 21 | H121: 79
B122: 901.902 | C122: Хлеб пшен., ржан. | D122: 40 | E122: 2 | G122: 19 | H122: 84
C123: ВСЕГО | D123: 150/605 | E123: =SUM(E116:E122) -> 20.89 | F123: =SUM(F116:F122) -> 19.72 | G123: =SUM(G116:G122) -> 126.68 | H123: =SUM(H116:H122) -> 747.2
C124: 12 день
C125: Завтрак
B126: 171 | C126: Каша пшенная | D126: 100/5 | E126: 7 | F126: 8 | G126: 44 | H126: 280
B127: 901.902 | C127: Хлеб пшен.ржан | D127: 40 | E127: 2 | G127: 19 | H127: 84
B128: 377 | C128: Чай с сахаром | D128: 200 | G128: 15 | H128: 57
C129: ВСЕГО | D129: 100/245 | E129: =SUM(E126:E128) -> 9 | F129: =SUM(F126:F128) -> 8 | G129: =SUM(G126:G128) -> 78 | H129: =SUM(H126:H128) -> 421
D131: Сменные блюда
D132: б | E132: ж | F132: у | G132: клл | H132: Гр.
B133: №81 | C133: Суп борщ из свеж.капусты | D133: 1 | E133: 3 | F133: 11 | G133: 118 | H133: 250
B134: №120 | C134: Суп молочный с макар.изделиями | D134: 5 | E134: 5 | F134: 21 | G134: 153 | H134: 250
B135: №382 | C135: Какао с молоком | D135: 3 | E135: 3 | F135: 21 | G135: 120 | H135: 200
B136: №345 | C136: Компот из смородины | D136: - | E136: - | F136: 28 | G136: 108 | H136: 200
B137: №904 | C137: Печенье | D137: 2 | E137: 2 | F137: 22 | G137: 112 | H137: 30
B138: №266 | C138: Коржи молочные | D138: 3.35 | E138: 5.5 | F138: 30.8 | G138: 185.5 | H138: 55
B139: №261 | C139: Булочки домашние | D139: 3.5 | E139: 5.9 | F139: 26.7 | G139: 174 | H139: 50
B140: №458 | C140: Ватрушки с повидлом | D140: 2.79 | E140: 1.86 | F140: 27.58 | G140: 138.75 | H140: 70
B141: №171 | C141: Каша рисовая рассыпчетая | D141: 7 | E141: 8 | F141: 44 | G141: 280 | H141: 150
B142: №378 | C142: Чай с молоком | D142: 1 | E142: 1 | F142: 17 | G142: 83 | H142: 200
B143: №178 | C143: Треугольник | D143: 9.18 | E143: 8.35 | F143: 21.35 | G143: 198.82 | H143: 100
B144: №406/02 | C144: Пирожки с фаршем и рисом | D144: 4 | E144: 4 | F144: 31 | G144: 161 | H144: 65
B145: №143 | C145: Рагу из овощей | D145: 2 | E145: 9 | F145: 10 | G145: 117 | H145: 100
B146: №139 | C146: Капуста тушёная | D146: 2 | E146: 3 | F146: 10 | G146: 80 | H146: 100
B147: №241 | C147: Мясо отварная | D147: 13 | F147: 12 | G147: 179 | H147: 80
B148: №215 | C148: Омлет паровой | D148: 6 | E148: 11 | F148: 2 | G148: 117 | H148: 55
B149: №903 | C149: Яблоко | F149: 14 | G149: 59 | H149: 140
B150: №907 | C150: Апельсин | D150: 1 | F150: 13 | G150: 57 | H150: 160
B151: №130 | C151: Суп картофельный на м/б. | D151: 1.9 | E151: 2.93 | F151: 7.35 | G151: 68.32 | H151: 100

Sheet Лист2
A1: Сменные блюда | B1: Выход | C1: Белки | D1: Жиры | E1: Углеводы | F1: Ккал
A2: Рассольник Ленинградский | B2: 250 | C2: 2 | D2: 4 | E2: 19 | F2: 561
A3: Суп борщ из св.капусты | B3: 250 | C3: 2 | D3: 3 | E3: 11 | F3: 84
A4: Суп молочн. макарон. издел. | B4: 250 | C4: 5 | D4: 5 | E4: 21 | F4: 153
A5: Суп картоф. макарон. издел. | B5: 250 | C5: 2 | D5: 2 | E5: 23 | F5: 549
A6: Какао с молоком | B6: 200 | C6: 3 | D6: 3 | E6: 21 | F6: 120
A7: Компот из смородины | B7: 200 | C7: - | D7: - | E7: 28 | F7: 108
A8: Печенье | B8: 30 | C8: 2 | D8: 2 | E8: 22 | F8: 112
A9: Суп картоф.гороховый | B9: 250 | C9: 5.66 | D9: 5.46 | E9: 26.16 | F9: 167.88
A10: Коржик молочный | B10: 55 | C10: 3.35 | D10: 5.5 | E10: 30.8 | F10: 185.5
A11: Булочки домашние | B11: 50 | C11: 3.5 | D11: 5.9 | E11: 26.7 | F11: 174
A12: Ватрушка с повидлом | B12: 70 | C12: 2.79 | D12: 1.86 | E12: 27.58 | F12: 138.35
A13: Рис отварной | B13: 150 | C13: 3.705 | D13: 3.24 | E13: 38.89 | F13: 199.61
A14: Каша рисовая молочная | B14: 200/10 | C14: 7.76 | D14: 10 | E14: 43.52 | F14: 296
A15: Каша манная молочная | B15: 200/10 | C15: 6.24 | D15: 6.1 | E15: 19.7 | F15: 158.64
A16: Чай с молоком | B16: 200 | C16: 1.4 | D16: 1.6 | E16: 1.4 | F16: 86

Sheet Лист3
